bitfinex/quotes_BTCUSD_20251024
["timestamp","ask_amount","ask_price","bid_price","bid_amount"]
[1761314752824,0.18097909,110510.0,110500.0,0.18099547]
[1761314753288,0.18097909,110510.0,110490.0,0.18235688]
[1761314753432,0.18197909,110510.0,110500.0,0.19099547]
[1761314753620,0.001,110510.0,110500.0,0.19099547]
[1761314754019,0.19002596,110520.0,110500.0,0.18099547]
[1761314754278,0.27984497,110520.0,110500.0,0.18099547]
[1761314754440,0.001,110510.0,110500.0,0.18099547]
[1761314754851,0.18096352,110520.0,110510.0,0.18097909]
[1761314755264,0.35731393,110530.0,110510.0,0.18097909]
[1761314755706,0.15745556,110530.0,110510.0,0.19260951]
[1761314756117,0.002,110520.0,110510.0,0.19260951]
[1761314756514,0.002,110520.0,110510.0,0.19397743]
[1761314756723,0.002,110520.0,110510.0,0.36393743]
[1761314757068,0.002,110520.0,110510.0,0.36093743]
[1761314757268,0.002,110520.0,110510.0,0.36493743]
[1761314757689,0.53000984,110540.0,110520.0,0.18096272]
[1761314757909,0.35911751,110540.0,110520.0,0.18096272]
[1761314758114,0.35911751,110540.0,110530.0,0.18094634]
[1761314758311,0.54004749,110540.0,110530.0,0.00068383]
[1761314758516,0.52092998,110540.0,110530.0,0.00068383]
[1761314758715,0.5400524,110540.0,110530.0,0.00068383]
[1761314759161,0.5400524,110540.0,110530.0,0.18163017]
[1761314759416,0.52092998,110540.0,110530.0,0.18163017]
[1761314759618,0.52292998,110540.0,110530.0,0.00068383]
[1761314760174,0.52692998,110540.0,110530.0,0.00068383]
[1761314760344,0.52292998,110540.0,110530.0,0.00068383]
[1761314760553,0.68968998,110540.0,110530.0,0.00068383]
[1761314760762,0.68768998,110540.0,110530.0,0.00368383]
[1761314761163,0.68968998,110540.0,110530.0,0.00368383]
[1761314761368,0.77950899,110540.0,110530.0,0.00068383]
[1761314761564,0.83282136,110540.0,110530.0,0.00068383]
[1761314761765,0.83282136,110540.0,110530.0,0.00168383]
[1761314761964,0.89270136,110540.0,110530.0,0.00168383]
[1761314762448,0.89070136,110540.0,110530.0,0.00168383]
[1761314762859,0.90170015,110540.0,110530.0,0.00168383]
[1761314763064,0.90170015,110540.0,110530.0,0.00068383]
[1761314763313,0.89270136,110540.0,110530.0,0.00068383]
[1761314763519,0.89270136,110540.0,110530.0,0.00268383]
[1761314763732,0.66806136,110540.0,110530.0,0.00268383]
[1761314763948,0.89253896,110540.0,110530.0,0.00268383]
[1761314764154,0.89053896,110540.0,110530.0,0.00268383]
[1761314764362,0.89053896,110540.0,110530.0,0.00068383]
[1761314764569,0.89953896,110540.0,110530.0,0.00068383]
[1761314764700,0.77353767,110540.0,110530.0,0.00068383]
[1761314767156,0.77353767,110540.0,110530.0,0.18163017]
[1761314767363,0.53472769,110540.0,110530.0,0.18163017]
[1761314767589,0.009,110540.0,110530.0,0.43780918]
[1761314767784,0.15188,110560.0,110550.0,0.18091361]
[1761314768080,0.00048779,110560.0,110550.0,0.18091361]
[1761314768667,0.34048779,110560.0,110550.0,0.18091361]
[1761314769002,0.00048779,110560.0,110550.0,0.18091361]
[1761314769825,0.00248779,110560.0,110550.0,0.18091361]
[1761314770228,0.00248779,110560.0,110550.0,0.18191361]
[1761314770652,0.00248779,110560.0,110550.0,0.18091361]
[1761314770901,0.00248779,110560.0,110550.0,0.18291361]
[1761314771224,0.00248779,110560.0,110550.0,0.21929651]
[1761314771365,0.00248779,110560.0,110550.0,0.002]
[1761314771576,0.00048779,110560.0,110550.0,0.18291361]
[1761314772004,0.00248779,110560.0,110550.0,0.18291361]
[1761314772956,0.68950504,110560.0,110550.0,0.002]
[1761314773169,0.50860779,110560.0,110550.0,0.18291361]
[1761314773642,0.68950504,110560.0,110550.0,0.18291361]
[1761314774443,0.68950504,110560.0,110550.0,0.002]
[1761314774661,0.77932405,110560.0,110550.0,0.002]
[1761314776032,0.87338633,110560.0,110550.0,0.002]
[1761314776434,0.83720405,110560.0,110550.0,0.002]
[1761314776632,0.87338633,110560.0,110550.0,0.002]
[1761314778474,0.87338633,110560.0,110510.0,0.1]
[1761314778704,0.87338633,110560.0,110510.0,0.07285425]
[1761314778705,0.27078173,110520.0,110510.0,0.07285425]
[1761314778916,0.27078173,110520.0,110490.0,0.0002]
[1761314778917,0.18099547,110500.0,110490.0,0.0002]
[1761314779133,0.78177775,110500.0,110490.0,0.0002]
[1761314779701,0.89074941,110500.0,110490.0,0.0002]
[1761314779902,0.85456713,110500.0,110490.0,0.00034542]
[1761314780233,0.93861608,110500.0,110490.0,0.00034542]
[1761314780588,0.55721052,110480.0,110470.0,8e-05]
[1761314780799,0.89070218,110480.0,110470.0,8e-05]
[1761314781854,0.76465212,110480.0,110470.0,8e-05]
[1761314782205,0.74954824,110480.0,110470.0,8e-05]
[1761314782408,0.51064,110480.0,110470.0,0.19922908]
[1761314782628,0.004,110480.0,110470.0,0.18112462]
[1761314782830,0.009,110480.0,110470.0,0.21736317]
[1761314783350,0.009,110480.0,110470.0,0.47370218]
[1761314783757,0.009,110480.0,110470.0,0.43746363]
[1761314784358,0.009,110480.0,110470.0,0.27094363]
[1761314784567,0.009,110480.0,110470.0,0.49530363]
[1761314785195,0.02387985,110530.0,110490.0,0.19006244]
[1761314785410,0.01924104,110530.0,110520.0,0.18096272]
[1761314785626,0.00014629,110530.0,110520.0,0.18096272]
[1761314786087,0.13530629,110530.0,110520.0,0.18096272]
[1761314786290,0.00014629,110530.0,110520.0,0.18096272]
[1761314786497,0.16666629,110530.0,110520.0,0.18096272]
[1761314786703,0.16662629,110530.0,110520.0,0.18096272]
[1761314786910,0.00014629,110530.0,110520.0,0.2180618]
[1761314787117,0.00014629,110530.0,110520.0,0.18196272]
[1761314787327,0.00514629,110530.0,110520.0,0.18196272]
[1761314788070,0.22946629,110530.0,110520.0,0.18196272]
[1761314788275,0.22446629,110530.0,110520.0,0.18196272]
[1761314788780,0.22546629,110530.0,110520.0,0.18196272]
[1761314788919,0.22546629,110530.0,110520.0,0.18096272]
[1761314789273,0.16754629,110530.0,110520.0,0.18396272]
[1761314789473,0.05906629,110530.0,110520.0,1.40821134]
[1761314789640,0.02387985,110570.0,110560.0,0.18089725]
[1761314789839,0.01959201,110570.0,110560.0,0.18089725]
[1761314790134,0.00048779,110570.0,110560.0,0.18089725]
[1761314790542,0.22468779,110570.0,110560.0,0.18089725]
[1761314790958,0.22968779,110570.0,110560.0,0.18089725]
[1761314791515,0.22468779,110570.0,110560.0,0.21707691]
[1761314791656,0.22760779,110570.0,110560.0,0.21707691]
[1761314791854,0.22760779,110570.0,110560.0,0.18089725]
[1761314792306,0.16964779,110570.0,110560.0,0.18089725]
[1761314792642,0.51732283,110570.0,110540.0,0.18092927]
[1761314792851,0.51732283,110570.0,110550.0,0.18091289]
[1761314793063,0.29328278,110570.0,110550.0,0.18091289]
[1761314793285,0.00348779,110570.0,110560.0,0.19898697]
[1761314793532,0.22448779,110570.0,110560.0,0.18089725]
[1761314793953,0.22548779,110570.0,110560.0,0.18089725]
[1761314794333,0.22448779,110570.0,110560.0,0.18089725]
[1761314794745,0.22744779,110570.0,110560.0,0.18089725]
[1761314794978,0.16948779,110570.0,110560.0,0.18089725]
[1761314795182,0.22736779,110570.0,110560.0,0.18089725]
[1761314796214,0.00348779,110570.0,110560.0,0.18089725]
[1761314796693,0.22728779,110570.0,110560.0,0.18089725]
[1761314797282,0.4081698,110570.0,110550.0,0.18091289]
[1761314797451,0.4081698,110570.0,110550.0,0.18090966]
[1761314797724,0.4081698,110570.0,110560.0,0.18089725]
[1761314797933,0.4081698,110570.0,110550.0,0.18090966]
[1761314798255,0.4051698,110570.0,110550.0,0.18090966]
[1761314798939,0.42425249,110570.0,110550.0,0.18290966]
[1761314799172,0.18089725,110560.0,110550.0,0.18290966]
[1761314799383,0.18089725,110560.0,110550.0,0.002]
[1761314800256,0.18089725,110560.0,110540.0,0.18997576]
[1761314800468,0.2236,110550.0,110540.0,0.18997576]
[1761314800936,0.001,110560.0,110550.0,0.18091361]
[1761314801172,0.19041384,110570.0,110550.0,0.18091361]
[1761314801373,0.58537725,110560.0,110550.0,0.18091361]
[1761314801581,0.58637725,110560.0,110550.0,0.18091361]
[1761314801755,0.58633725,110560.0,110550.0,0.18091361]
[1761314801970,0.18189725,110560.0,110550.0,0.18091361]
[1761314802174,0.001,110560.0,110550.0,0.18091361]
[1761314802377,0.58625725,110560.0,110540.0,0.009]
[1761314802579,0.05788,110550.0,110540.0,0.18092874]
[1761314803117,0.05788,110550.0,110530.0,0.19033402]
[1761314803118,0.18092998,110540.0,110530.0,0.00034194]
[1761314803339,0.68644998,110540.0,110530.0,0.00034194]
[1761314804217,0.74436998,110540.0,110530.0,0.00034194]
[1761314804418,0.76345065,110540.0,110530.0,0.00034194]
[1761314804829,0.54401065,110540.0,110530.0,0.00034194]
[1761314805112,0.76745065,110540.0,110530.0,0.00034194]
[1761314806127,0.76345065,110540.0,110530.0,0.00034194]
[1761314806447,0.76745065,110540.0,110530.0,0.00034194]
[1761314806657,0.54401065,110540.0,110530.0,0.00034194]
[1761314806858,0.76737065,110540.0,110530.0,0.00034194]
[1761314807098,0.54401065,110540.0,110530.0,0.00034194]
[1761314807367,0.76725065,110540.0,110530.0,0.00034194]
[1761314807565,0.54401065,110540.0,110530.0,0.00034194]
[1761314807739,0.76325065,110540.0,110530.0,0.00034194]
[1761314808093,0.52492998,110540.0,110530.0,0.00034194]
[1761314808272,0.74816998,110540.0,110530.0,0.00034194]
[1761314809295,0.76325227,110540.0,110530.0,0.00034194]
[1761314809663,0.76725227,110540.0,110530.0,0.00034194]
[1761314809870,1.03803128,110540.0,110530.0,0.00034194]
[1761314810421,1.09809341,110540.0,110530.0,0.00034194]
[1761314810637,0.69389341,110540.0,110530.0,0.00034194]
[1761314810851,0.75413341,110540.0,110530.0,0.00034194]
[1761314811276,0.75813341,110540.0,110530.0,0.00034194]
[1761314812245,0.70025341,110540.0,110530.0,0.00034194]
[1761314812455,0.78999849,110540.0,110530.0,0.00034194]
[1761314812668,0.55107849,110540.0,110530.0,0.00034194]
[1761314813000,0.78991849,110540.0,110530.0,0.00034194]
[1761314813542,0.76603864,110540.0,110530.0,0.00034194]
[1761314813773,0.78204023,110540.0,110530.0,0.00034194]
[1761314815531,0.71788023,110540.0,110530.0,0.00034194]
[1761314815733,1.15379296,110540.0,110530.0,0.00034194]
[1761314815930,1.10592629,110540.0,110530.0,0.00034194]
[1761314816139,1.15379296,110540.0,110530.0,0.00034194]
[1761314816470,1.10592629,110540.0,110530.0,0.00034194]
[1761314816842,1.15379296,110540.0,110530.0,0.00034194]
[1761314817041,1.12188023,110540.0,110530.0,0.00034194]
[1761314817444,0.71788023,110540.0,110530.0,0.00034194]
[1761314817646,1.1537807,110540.0,110530.0,0.00034194]
[1761314818636,0.7497807,110540.0,110530.0,0.00034194]
[1761314818839,1.1537407,110540.0,110530.0,0.00034194]
[1761314819249,0.7497807,110540.0,110530.0,0.00034194]
[1761314819455,1.10583403,110540.0,110530.0,0.00034194]
[1761314820067,1.10575403,110540.0,110530.0,0.00034194]
[1761314820279,0.6896512,110540.0,110530.0,0.00034194]
[1761314820539,1.0934912,110540.0,110530.0,0.00034194]
[1761314820723,1.12967348,110540.0,110530.0,0.00034194]
[1761314820932,1.12172023,110540.0,110530.0,0.00034194]
[1761314821294,0.52099547,110500.0,110490.0,0.03710762]
[1761314821497,0.52099547,110500.0,110470.0,0.1901301]
[1761314821498,0.1810145,110490.0,110470.0,0.1901301]
[1761314821724,0.16504,110480.0,110470.0,0.1901301]
[1761314821942,0.16504,110480.0,110470.0,8e-05]
[1761314821943,0.34606824,110480.0,110470.0,8e-05]
[1761314822100,0.1810145,110490.0,110470.0,0.18112462]
[1761314822307,0.22296,110480.0,110470.0,0.18112462]
[1761314822517,0.40398824,110480.0,110470.0,0.00022629]
[1761314822757,0.40398824,110480.0,110470.0,0.01222629]
[1761314822910,0.20014868,110480.0,110470.0,0.01222629]
[1761314823126,0.42318868,110480.0,110470.0,0.01222629]
[1761314823526,0.20014868,110480.0,110470.0,0.01222629]
[1761314823735,0.42314868,110480.0,110470.0,0.01222629]
[1761314823970,0.42314868,110480.0,110470.0,0.00022629]
[1761314824193,0.42310868,110480.0,110470.0,0.00522629]
[1761314824392,0.20014868,110480.0,110470.0,0.00522629]
[1761314824649,0.42310868,110480.0,110470.0,0.00022629]
[1761314824801,0.36518868,110480.0,110470.0,0.00022629]
[1761314825007,0.42310868,110480.0,110470.0,0.01022629]
[1761314825211,0.42306868,110480.0,110470.0,0.18127091]
[1761314825485,0.42306868,110480.0,110470.0,0.00022629]
[1761314825767,0.42406868,110480.0,110470.0,0.18727091]
[1761314825962,0.20114868,110480.0,110470.0,0.18127091]
[1761314826102,0.42406868,110480.0,110470.0,0.18127091]
[1761314826312,0.20014868,110480.0,110470.0,0.00022629]
[1761314826567,0.42606868,110480.0,110470.0,0.00022629]
[1761314826804,0.20314868,110480.0,110470.0,0.00022629]
[1761314827008,0.36814868,110480.0,110470.0,0.00022629]
[1761314827231,0.42806868,110480.0,110470.0,0.00022629]
[1761314827439,0.42806868,110480.0,110470.0,0.00227911]
[1761314827654,0.51788769,110480.0,110470.0,0.00227911]
[1761314827834,0.541803,110480.0,110470.0,0.00227911]
[1761314828389,0.52104462,110470.0,110450.0,0.52934153]
[1761314828589,0.165,110460.0,110450.0,0.71050698]
[1761314828804,0.34606101,110460.0,110450.0,0.71050698]
[1761314829030,0.165,110460.0,110450.0,0.71050698]
[1761314830259,0.34606101,110460.0,110450.0,0.710507]
[1761314830590,0.18510681,110460.0,110450.0,0.721507]
[1761314830787,0.001,110460.0,110450.0,0.79556109]
[1761314830996,0.16588,110460.0,110450.0,0.721507]
[1761314831357,0.001,110460.0,110450.0,0.721507]
[1761314831758,0.001,110460.0,110450.0,0.871007]
[1761314832007,0.001,110460.0,110450.0,1.29052184]
[1761314832159,0.16584,110460.0,110450.0,1.29052184]
[1761314832370,0.16584,110460.0,110450.0,0.90114502]
[1761314832842,0.001,110460.0,110450.0,0.90114502]
[1761314832969,0.001,110460.0,110450.0,1.38034085]
[1761314833372,0.001,110460.0,110450.0,1.39034084]
[1761314833765,0.08183531,110500.0,110490.0,0.18101185]
[1761314834012,0.13832644,110500.0,110490.0,0.18101185]
[1761314834216,0.18392644,110500.0,110490.0,0.27083086]
[1761314835067,0.02312644,110500.0,110490.0,0.27083086]
[1761314835321,0.19188644,110500.0,110490.0,0.27083086]
[1761314835718,0.02712644,110500.0,110490.0,0.27083086]
[1761314835903,0.18788644,110500.0,110490.0,0.27083086]
[1761314836110,0.16876,110500.0,110490.0,0.27083086]
[1761314836270,0.004,110500.0,110490.0,0.27083086]
[1761314836481,0.50884,110500.0,110490.0,0.27083086]
[1761314837080,0.50484,110500.0,110490.0,0.27083086]
[1761314837390,0.50584,110500.0,110490.0,0.27683086]
[1761314837704,0.50484,110500.0,110490.0,0.27083086]
[1761314837912,0.5048,110500.0,110490.0,0.27483086]
[1761314838119,0.52494145,110500.0,110490.0,0.27483086]
[1761314838644,0.52494145,110500.0,110490.0,0.27083086]
[1761314838645,0.52394145,110500.0,110490.0,0.27083086]
[1761314839000,0.52394145,110500.0,110490.0,0.27583086]
[1761314839210,0.52494145,110500.0,110490.0,0.27583086]
[1761314839650,0.52494145,110500.0,110490.0,0.18601185]
[1761314840253,0.52494145,110500.0,110490.0,0.18101185]
[1761314840454,0.52394145,110500.0,110490.0,0.18101185]
[1761314840630,0.52394145,110500.0,110490.0,0.18501185]
[1761314840855,0.18494145,110500.0,110490.0,0.18101185]
[1761314841087,0.18494145,110500.0,110490.0,0.23216586]
[1761314841293,0.18394145,110500.0,110490.0,0.23716586]
[1761314841493,0.01914145,110500.0,110490.0,0.18601185]
[1761314841717,0.18486145,110500.0,110490.0,0.18601185]
[1761314842058,0.18482145,110500.0,110490.0,0.18601185]
[1761314842412,0.02014145,110500.0,110490.0,0.18601185]
[1761314842613,0.02014145,110500.0,110490.0,0.27583086]
[1761314842861,0.001,110500.0,110490.0,0.8448457]
[1761314843063,0.001,110500.0,110490.0,0.36564987]
[1761314843269,0.001,110500.0,110490.0,0.27583086]
[1761314843484,0.001,110500.0,110490.0,0.90452669]
[1761314843909,1e-08,110500.0,110490.0,1.14120896]
[1761314844469,1e-08,110500.0,110490.0,0.66201313]
[1761314844699,0.14819082,110530.0,110520.0,0.18096272]
[1761314844877,0.14833711,110530.0,110520.0,0.27078173]
[1761314845081,0.14833711,110530.0,110520.0,0.31595781]
[1761314845281,0.1244218,110530.0,110520.0,0.31595781]
[1761314845535,0.1844218,110530.0,110520.0,0.31595781]
[1761314845744,0.0793018,110530.0,110520.0,0.27078173]
[1761314845944,0.10321711,110530.0,110520.0,0.27078173]
[1761314846105,0.10321711,110530.0,110520.0,0.18096272]
[1761314846507,0.10321711,110530.0,110510.0,0.18097909]
[1761314846707,0.28416362,110530.0,110510.0,0.2707981]
[1761314846931,0.6560507,110530.0,110520.0,0.004]
[1761314847134,1.0284473,110530.0,110520.0,0.004]
[1761314847357,0.99656022,110530.0,110520.0,0.004]
[1761314847567,0.9497296,110530.0,110520.0,0.004]
[1761314847762,0.9497296,110530.0,110470.0,0.19009685]
[1761314847763,0.18102214,110490.0,110470.0,0.19009685]
[1761314847965,0.34563124,110480.0,110470.0,0.18104462]
[1761314848175,0.1646,110480.0,110470.0,0.18104462]
[1761314849134,0.34,110490.0,110480.0,0.18102553]
[1761314849360,0.35914266,110490.0,110480.0,0.18102553]
[1761314849645,0.76263451,110490.0,110470.0,0.21819186]
[1761314849780,0.76263451,110490.0,110470.0,0.21819095]
[1761314849985,0.76263451,110490.0,110480.0,0.18102824]
[1761314850194,0.58162266,110490.0,110480.0,0.18102824]
[1761314850405,0.76263451,110490.0,110480.0,0.18102824]
[1761314851069,0.76463451,110490.0,110480.0,0.18102824]
[1761314851249,0.54215451,110490.0,110480.0,0.18102824]
[1761314851574,0.76255451,110490.0,110480.0,0.18102824]
[1761314851806,0.54715451,110490.0,110480.0,0.18102824]
[1761314851995,0.58854266,110490.0,110480.0,0.18102824]
[1761314852229,0.76955451,110490.0,110470.0,0.18104371]
[1761314852371,0.54715451,110490.0,110460.0,0.19042781]
[1761314852573,0.16444,110480.0,110470.0,0.18104427]
[1761314852781,0.34546824,110480.0,110470.0,0.18104462]
[1761314852989,0.36461244,110480.0,110460.0,0.19051587]
[1761314853152,0.18104462,110470.0,110460.0,0.18149117]
[1761314854222,0.18104462,110470.0,110460.0,0.00043032]
[1761314854423,0.18204462,110470.0,110460.0,0.00243032]
[1761314855049,0.18204462,110470.0,110460.0,0.18349133]
[1761314855216,0.18204462,110470.0,110460.0,0.00243032]
[1761314855416,0.54119059,110470.0,110460.0,0.00243032]
[1761314856071,0.36014597,110470.0,110460.0,0.00243032]
[1761314856273,0.56324,110470.0,110460.0,0.18349133]
[1761314856481,0.22328,110470.0,110460.0,0.18349133]
[1761314857051,0.16532,110470.0,110460.0,0.18349133]
[1761314858572,0.16528,110470.0,110460.0,0.18349133]
[1761314858797,0.001,110470.0,110460.0,0.18349133]
[1761314858975,0.16524,110470.0,110460.0,0.18349133]
[1761314859716,0.001,110470.0,110460.0,0.18349133]
[1761314859942,0.16524,110470.0,110460.0,0.18349133]
[1761314863446,0.16504,110470.0,110460.0,0.18349133]
[1761314864496,0.16504,110470.0,110460.0,0.33299133]
[1761314864708,0.34608462,110470.0,110460.0,0.00243032]
[1761314864857,0.36523293,110470.0,110460.0,0.18349133]
[1761314865062,0.18418831,110470.0,110460.0,0.18349133]
[1761314865257,0.36523293,110470.0,110460.0,0.18349133]
[1761314865857,0.18418831,110470.0,110460.0,0.18349133]
[1761314866056,0.76315293,110470.0,110460.0,0.00243032]
[1761314866263,0.76315293,110470.0,110460.0,0.18349133]
[1761314866486,0.58210831,110470.0,110460.0,0.18349133]
[1761314866689,0.36014831,110470.0,110460.0,0.18349133]
[1761314866890,0.341,110470.0,110460.0,0.18349133]
[1761314867094,0.56296,110470.0,110460.0,0.18349133]
[1761314867674,0.50504,110470.0,110460.0,0.18349133]
[1761314868182,0.341,110470.0,110460.0,0.18349133]
[1761314868387,0.505,110470.0,110460.0,0.18349133]
[1761314869234,0.001,110470.0,110460.0,0.841897]
[1761314869432,0.001,110470.0,110460.0,0.27331034]
[1761314871086,0.001,110470.0,110460.0,0.43727034]
[1761314873514,0.001,110470.0,110460.0,0.58677034]
[1761314873730,0.001,110470.0,110460.0,0.33299133]
[1761314874695,0.16484,110470.0,110460.0,0.33299133]
[1761314874902,0.001,110470.0,110460.0,0.33299133]
[1761314875126,0.1648,110470.0,110460.0,0.00243032]
[1761314875531,0.1648,110470.0,110460.0,0.18349133]
[1761314875729,0.001,110470.0,110460.0,0.18349133]
[1761314876229,0.50528,110470.0,110460.0,0.18349133]
[1761314876631,0.16528,110470.0,110460.0,0.27331034]
[1761314877242,0.001,110470.0,110460.0,0.27331034]
[1761314877640,0.001,110470.0,110460.0,0.36312935]
[1761314877840,0.001,110470.0,110460.0,0.27331034]
[1761314879860,0.001,110470.0,110460.0,1.01515092]
[1761314880510,0.001,110470.0,110460.0,1.16465092]
[1761314880709,0.001,110470.0,110460.0,1.17465091]
[1761314880991,0.001,110470.0,110460.0,1.16465092]
[1761314881188,0.001,110470.0,110460.0,1.25446993]
[1761314881876,0.14252,110500.0,110490.0,0.18101185]
[1761314882086,0.01920204,110500.0,110490.0,0.18101185]
[1761314882337,0.18328204,110500.0,110490.0,0.18101185]
[1761314882465,0.01920204,110500.0,110490.0,0.18101185]
[1761314882666,0.36392411,110510.0,110500.0,0.18099547]
[1761314882897,0.78606032,110510.0,110500.0,0.18099547]
[1761314883094,0.60508123,110510.0,110500.0,0.18099547]
[1761314883311,0.54716123,110510.0,110500.0,0.18099547]
[1761314883658,0.7860622,110510.0,110500.0,0.18099547]
[1761314884073,0.60508123,110510.0,110500.0,0.18099547]
[1761314884283,0.58115712,110510.0,110500.0,0.18099547]
[1761314884983,0.76213683,110510.0,110500.0,0.18099547]
[1761314885222,0.76513683,110510.0,110500.0,0.18099547]
[1761314885429,0.18099547,110500.0,110480.0,0.1495]
[1761314885626,0.34493185,110490.0,110480.0,0.33052824]
[1761314886238,0.164,110490.0,110480.0,0.33052824]
[1761314886452,0.39792,110500.0,110490.0,0.18101088]
[1761314886652,0.76209019,110500.0,110490.0,0.18101185]
[1761314886852,0.76209019,110500.0,110480.0,0.1505]
[1761314886853,0.001,110490.0,110480.0,0.1505]
[1761314887085,0.20118338,110490.0,110480.0,0.1505]
[1761314887898,0.20118338,110490.0,110480.0,0.1495]
[1761314888074,0.20018338,110490.0,110480.0,0.1495]
[1761314888422,0.54018338,110490.0,110480.0,0.001]
[1761314888632,0.66618467,110490.0,110480.0,0.001]
[1761314888805,0.69010878,110490.0,110480.0,0.001]
[1761314889033,0.7220076,110490.0,110480.0,0.001]
[1761314889241,0.74593172,110490.0,110480.0,0.001]
[1761314889354,0.74693172,110490.0,110480.0,0.001]
[1761314889781,0.74593172,110490.0,110480.0,0.001]
[1761314890210,0.74893172,110490.0,110480.0,0.001]
[1761314891108,0.52104462,110470.0,110460.0,0.00034226]
[1761314891314,0.76205615,110470.0,110460.0,0.00043032]
[1761314891737,0.35917153,110470.0,110460.0,0.00043032]
[1761314891955,0.16392,110470.0,110460.0,0.18149133]
[1761314892413,0.16492,110470.0,110460.0,0.18149133]
[1761314892642,0.16492,110470.0,110460.0,0.18249133]
[1761314892855,0.16392,110470.0,110460.0,0.18249133]
[1761314893714,0.16392,110470.0,110460.0,0.00143032]
[1761314893943,0.18307802,110470.0,110460.0,0.18249133]
[1761314894698,0.36412264,110470.0,110460.0,0.00143032]
[1761314894887,0.70512264,110470.0,110460.0,0.00143032]
[1761314895342,0.79494165,110470.0,110460.0,0.00143032]
[1761314896214,0.85507352,110470.0,110460.0,0.00143032]
[1761314896421,0.85407352,110470.0,110460.0,0.00143032]
[1761314896856,0.86305331,110470.0,110460.0,0.00143032]
[1761314897266,0.83910372,110470.0,110460.0,0.00143032]
[1761314897700,0.84010372,110470.0,110460.0,0.00143032]
[1761314897928,0.86405331,110470.0,110460.0,0.00043032]
[1761314898141,0.86405331,110470.0,110430.0,0.004]
[1761314898142,0.55727608,110440.0,110430.0,0.004]
[1761314898396,0.55730888,110420.0,110410.0,0.0002]
[1761314898615,0.86239737,110420.0,110410.0,0.00068643]
[1761314899052,0.86239737,110420.0,110400.0,0.004]
[1761314899053,0.87834678,110420.0,110400.0,0.004]
[1761314899273,3.3200585,110410.0,110400.0,1e-08]
[1761314899485,0.37618228,110390.0,110380.0,0.0002]
[1761314899738,0.50459458,110390.0,110380.0,0.0002]
[1761314899949,0.72195111,110390.0,110380.0,0.0002]
[1761314900168,0.69015402,110390.0,110350.0,0.0002]
[1761314900372,0.69015402,110390.0,110320.0,8e-05]
[1761314900373,0.34906207,110350.0,110320.0,8e-05]
[1761314900589,0.05792,110340.0,110320.0,0.18151738]
[1761314900796,0.02384624,110360.0,110340.0,0.18125288]
[1761314901004,0.16536,110350.0,110340.0,0.18125288]
[1761314901226,0.25517901,110350.0,110320.0,0.19058191]
[1761314901431,0.25517901,110350.0,110330.0,0.18127393]
[1761314901631,0.63136129,110350.0,110340.0,0.18125793]
[1761314901845,0.81260328,110350.0,110330.0,0.18127393]
[1761314902279,0.63136129,110350.0,110330.0,0.18127393]
[1761314902481,0.81260451,110350.0,110330.0,0.18127393]
[1761314902677,0.63136129,110350.0,110330.0,0.18127393]
[1761314902898,0.7764208,110350.0,110330.0,0.18127393]
[1761314903156,0.7764208,110350.0,110340.0,0.18125793]
[1761314903157,0.59517901,110350.0,110340.0,0.18125793]
[1761314903359,0.78042051,110350.0,110330.0,0.18127393]
[1761314903755,0.78042051,110350.0,110330.0,0.18127261]
[1761314903964,0.78042165,110350.0,110330.0,0.18127261]
[1761314904180,0.78042165,110350.0,110340.0,0.00411177]
[1761314904378,0.25917901,110350.0,110340.0,0.1853697]
[1761314904614,0.25917901,110350.0,110340.0,0.00411177]
[1761314904862,0.83151456,110350.0,110340.0,0.00411177]
[1761314905082,0.85515601,110350.0,110340.0,0.00411177]
[1761314905297,0.85915601,110350.0,110340.0,0.00411177]
[1761314905508,0.67909681,110350.0,110340.0,0.00411177]
[1761314905715,1.07111456,110350.0,110340.0,0.00411177]
[1761314905942,0.08981901,110350.0,110340.0,0.1853697]
[1761314906163,0.004,110350.0,110340.0,0.00411177]
[1761314906377,0.004,110350.0,110340.0,0.02223756]
[1761314906581,0.18122524,110360.0,110340.0,0.20349453]
[1761314906792,0.18122524,110360.0,110340.0,0.18125697]
[1761314907008,0.35614961,110370.0,110340.0,0.19938276]
[1761314907222,0.44596862,110370.0,110350.0,0.18124082]
[1761314907472,0.06,110360.0,110350.0,0.18124082]
[1761314907684,0.24122508,110360.0,110340.0,0.18125697]
[1761314907854,0.06,110360.0,110350.0,0.1812415]
[1761314908248,0.24122508,110360.0,110350.0,0.1812415]
[1761314908448,0.24122508,110360.0,110340.0,0.18125697]
[1761314908653,0.24422508,110360.0,110340.0,0.18125697]
[1761314908853,0.063,110360.0,110350.0,0.1812415]
[1761314909501,0.06,110360.0,110350.0,0.3479215]
[1761314909946,0.063,110360.0,110350.0,0.3479215]
[1761314910981,0.063,110360.0,110350.0,0.1812415]
[1761314911189,0.06,110360.0,110350.0,0.3478815]
[1761314911431,0.063,110360.0,110350.0,0.3478815]
[1761314912052,0.063,110360.0,110350.0,0.35165028]
[1761314912479,0.063,110360.0,110350.0,0.18501028]
[1761314912709,0.063,110360.0,110350.0,0.35165028]
[1761314913348,0.063,110360.0,110350.0,0.44146929]
[1761314913581,0.063,110360.0,110350.0,0.50374192]
[1761314913821,0.063,110360.0,110350.0,0.44146929]
[1761314914060,0.063,110360.0,110350.0,1.18330987]
[1761314914288,0.063,110360.0,110350.0,1.19330986]
[1761314914767,0.06,110360.0,110350.0,1.19330986]
[1761314914989,0.06,110360.0,110350.0,1.19430986]
[1761314914990,0.061,110360.0,110350.0,1.19430986]
[1761314915283,0.05543854,110430.0,110420.0,0.1811266]
[1761314915527,0.25500101,110450.0,110430.0,0.1811102]
[1761314915528,0.02364145,110450.0,110430.0,0.1811102]
[1761314915735,0.34,110450.0,110440.0,0.3458138]
[1761314915942,0.19012758,110470.0,110440.0,0.3479738]
[1761314916181,0.10872726,110470.0,110450.0,0.18107681]
[1761314916397,0.01890825,110470.0,110460.0,0.18106101]
[1761314916671,0.01890825,110470.0,110440.0,0.1810938]
[1761314916672,0.27135227,110470.0,110440.0,0.1810938]
[1761314916895,0.20044151,110470.0,110450.0,0.18107724]
[1761314917145,0.20044151,110470.0,110450.0,0.18107738]
[1761314917383,0.54044068,110470.0,110450.0,0.18107738]
[1761314917592,0.35939606,110470.0,110460.0,0.18106101]
[1761314917798,0.54044068,110470.0,110450.0,0.18107738]
[1761314918027,0.20044068,110470.0,110450.0,0.18107738]
[1761314918264,0.18106101,110460.0,110450.0,0.18107738]
[1761314918704,0.18106101,110460.0,110440.0,0.2799675]
[1761314918929,0.18106101,110460.0,110440.0,0.18109368]
[1761314919137,0.19999458,110460.0,110440.0,0.1810938]
[1761314919345,0.36679458,110460.0,110450.0,0.18107741]
[1761314919550,0.16679458,110460.0,110440.0,0.1810938]